fUSD/lending_fUSD_20240422
["ID","MTS","AMOUNT","RATE_DAILY","PERIOD"]
[323210187,1713817852420,-500.0,0.00013698,2]
[323210188,1713817852432,-500.0,0.00013698,2]
[323210189,1713817852445,-1423.76,0.00013698,2]
[323210190,1713817852456,-500.0,0.00013698,2]
[323210191,1713817852468,-500.0,0.00013698,2]
[323210192,1713817852479,-754.54,0.00013698,2]
[323210193,1713817852491,-500.0,0.00013698,2]
[323210194,1713817852503,-766.12,0.00013698,2]
[323210195,1713817852515,-1066.26,0.00013698,2]
[323210196,1713817852526,-730.36,0.00013698,2]
[323210197,1713817852537,-632.66366171,0.00013698,2]
[323210198,1713817852548,-1476.18,0.00013698,2]
[323210199,1713817852561,-630.54,0.00013698,2]
[323210200,1713817852572,-1555.08,0.00013698,2]
[323210201,1713817852582,-500.0,0.00013698,2]
[323210202,1713817852592,-1064.89,0.00013698,2]
[323210203,1713817852601,-500.0,0.00013698,2]
[323210204,1713817852611,-1952.11,0.00013698,2]
[323210205,1713817852621,-909.66,0.00013698,2]
[323210206,1713817852630,-500.0,0.00013698,2]
[323210207,1713817852640,-500.0,0.00013698,2]
[323210208,1713817852742,-500.0,0.00013698,2]
[323210209,1713817852752,-312.7588813,0.00013698,2]
[323210210,1713817852762,-500.0,0.00013698,2]
[323210211,1713817852772,-500.0,0.00013698,2]
[323210212,1713817852781,-2542.4,0.00013698,2]
[323210213,1713817852792,-801.08,0.00013698,2]
[323210214,1713817852802,-500.0,0.00013698,2]
[323210215,1713817852812,-516.13779111,0.00013698,2]
[323210216,1713817852822,-1323.06,0.00013698,2]
[323210217,1713817852833,-580.66,0.00013698,2]
[323210218,1713817852846,-1009.86,0.00013698,2]
[323210219,1713817852862,-685.24,0.00013698,2]
[323210220,1713817852873,-751.49,0.00013698,2]
[323210221,1713817852884,-996.9,0.00013698,2]
[323210222,1713817852895,-1254.19,0.00013698,2]
[323210223,1713817852906,-860.39,0.00013698,2]
[323210224,1713817852916,-4409.84,0.00013698,2]
[323210225,1713817852926,-513.13,0.00013698,2]
[323210226,1713817852935,-605.11,0.00013698,2]
[323210227,1713817852946,-1869.66,0.00013698,2]
[323210228,1713817852956,-500.0,0.00013698,2]
[323210229,1713817852966,-1437.23,0.00013698,2]
[323210230,1713817852975,-1024.83,0.00013698,2]
[323210231,1713817852986,-794.18,0.00013698,2]
[323210232,1713817852997,-1182.95,0.00013698,2]
[323210233,1713817853007,-1314.8,0.00013698,2]
[323210234,1713817853017,-500.0,0.00013698,2]
[323210235,1713817853027,-500.0,0.00013698,2]
[323210236,1713817853037,-983.81,0.00013698,2]
[323210237,1713817853047,-500.0,0.00013698,2]
[323210238,1713817853057,-500.0,0.00013698,2]
[323210239,1713817853066,-500.0,0.00013698,2]
[323210240,1713817853077,-914.73,0.00013698,2]
[323210241,1713817853086,-500.0,0.00013698,2]
[323210242,1713817853097,-876.01,0.00013698,2]
[323210243,1713817853107,-500.0,0.00013698,2]
[323210244,1713817853117,-510.5937668,0.00013698,2]
[323210245,1713817853126,-500.0,0.00013698,2]
[323210246,1713817853135,-878.84,0.00013698,2]
[323210247,1713817853145,-500.0,0.00013698,2]
[323210248,1713817853154,-541.31,0.00013698,2]
[323210249,1713817853163,-894.0,0.00013698,2]
[323210250,1713817853173,-501.15198024,0.00013698,2]
[323210251,1713817853182,-500.0,0.00013698,2]
[323210252,1713817853191,-1124.13,0.00013698,2]
[323210253,1713817853201,-2061.61,0.00013698,2]
[323210254,1713817853210,-1403.67,0.00013698,2]
[323210255,1713817853219,-1325.09,0.00013698,2]
[323210256,1713817853228,-500.0,0.00013698,2]
[323210257,1713817853239,-775.89,0.00013698,2]
[323210258,1713817853250,-501.82719796,0.00013698,2]
[323210259,1713817853258,-1196.82,0.00013698,2]
[323210260,1713817853268,-1211.22,0.00013698,2]
[323210261,1713817853277,-500.0,0.00013698,2]
[323210262,1713817853287,-1451.51,0.00013698,2]
[323210263,1713817853297,-504.29476486,0.00013698,2]
[323210264,1713817853308,-500.0,0.00013698,2]
[323210265,1713817853319,-500.0,0.00013698,2]
[323210266,1713817853330,-500.0,0.00013698,2]
[323210267,1713817853341,-1680.65,0.00013698,2]
[323210268,1713817853352,-516.04,0.00013698,2]
[323210269,1713817853364,-500.0,0.00013698,2]
[323210270,1713817853374,-922.47,0.00013698,2]
[323210271,1713817853383,-1636.05,0.00013698,2]
[323210272,1713817853395,-629.00466631,0.00013698,2]
[323210273,1713817853405,-500.0,0.00013698,2]
[323210274,1713817853414,-500.0,0.00013698,2]
[323210275,1713817853425,-725.28,0.00013698,2]
[323210276,1713817853435,-500.0,0.00013698,2]
[323210277,1713817853445,-500.0,0.00013698,2]
[323210278,1713817853454,-500.0,0.00013698,2]
[323210279,1713817853463,-500.0,0.00013698,2]
[323210280,1713817853473,-816.4,0.00013698,2]
[323210281,1713817853483,-526.67,0.00013698,2]
[323210282,1713817853494,-500.0,0.00013698,2]
[323210283,1713817853504,-500.0,0.00013698,2]
[323210284,1713817853514,-500.0,0.00013698,2]
[323210285,1713817853524,-500.0,0.00013698,2]
[323210286,1713817853534,-500.0,0.00013698,2]
[323210287,1713817853544,-500.0,0.00013698,2]
[323210288,1713817853556,-500.0,0.00013698,2]
[323210289,1713817853566,-500.0,0.00013698,2]
[323210290,1713817853576,-161.31197994,0.00013698,2]
[323210291,1713817853587,-500.0,0.00013698,2]
[323210292,1713817853598,-500.0,0.00013698,2]
[323210293,1713817853608,-754.42,0.00013698,2]
[323210294,1713817853618,-1131.8,0.00013698,2]
[323210295,1713817853630,-500.0,0.00013698,2]
[323210296,1713817853639,-500.0,0.00013698,2]
[323210297,1713817853650,-500.0,0.00013698,2]
[323210298,1713817853660,-500.0,0.00013698,2]
[323210299,1713817853672,-500.0,0.00013698,2]
[323210300,1713817853682,-1402.5,0.00013698,2]
[323210301,1713817853693,-532.25,0.00013698,2]
[323210302,1713817853730,-787.9,0.00013698,2]
[323210303,1713817853769,-500.0,0.00013698,2]
[323210304,1713817853778,-1069.11,0.00013698,2]
[323210305,1713817853786,-559.84,0.00013698,2]
[323210306,1713817853795,-624.97,0.00013698,2]
[323210307,1713817853804,-1256.58,0.00013698,2]
[323210308,1713817853813,-500.0,0.00013698,2]
[323210309,1713817853822,-628.34,0.00013698,2]
[323210310,1713817853831,-500.0,0.00013698,2]
[323210311,1713817853840,-511.77279648,0.00013698,2]
[323210312,1713817853852,-500.0,0.00013698,2]
[323210313,1713817853861,-500.0,0.00013698,2]
[323210314,1713817853870,-500.0,0.00013698,2]
[323210315,1713817853879,-1806.23,0.00013698,2]
[323210316,1713817853888,-1450.35,0.00013698,2]
[323210317,1713817853897,-1359.54,0.00013698,2]
[323210318,1713817853905,-500.0,0.00013698,2]
[323210319,1713817853914,-500.0,0.00013698,2]
[323210320,1713817853923,-500.0,0.00013698,2]
[323210321,1713817853932,-728.34,0.00013698,2]
[323210322,1713817853942,-500.0,0.00013698,2]
[323210323,1713817853951,-500.0,0.00013698,2]
[323210324,1713817853960,-502.81,0.00013698,2]
[323210325,1713817853968,-500.0,0.00013698,2]
[323210326,1713817853977,-1191.78,0.00013698,2]
[323210327,1713817853986,-583.38,0.00013698,2]
[323210328,1713817853995,-888.12,0.00013698,2]
[323210329,1713817854004,-500.0,0.00013698,2]
[323210330,1713817854013,-578.9,0.00013698,2]
[323210331,1713817854022,-500.0,0.00013698,2]
[323210332,1713817854031,-1855.61,0.00013698,2]
[323210333,1713817854040,-500.0,0.00013698,2]
[323210334,1713817854050,-500.0,0.00013698,2]
[323210335,1713817854059,-500.0,0.00013698,2]
[323210336,1713817854068,-1313.44,0.00013698,2]
[323210337,1713817854078,-540.74013701,0.00013698,2]
[323210338,1713817854088,-1448.43,0.00013698,2]
[323210339,1713817854097,-500.0,0.00013698,2]
[323210340,1713817854106,-500.0,0.00013698,2]
[323210341,1713817854115,-500.0,0.00013698,2]
[323210342,1713817854124,-500.0,0.00013698,2]
[323210343,1713817854133,-500.0,0.00013698,2]
[323210344,1713817854142,-1028.72,0.00013698,2]
[323210345,1713817854152,-564.41254668,0.00013698,2]
[323210346,1713817854161,-595.0,0.00013698,2]
[323210347,1713817854170,-500.0,0.00013698,2]
[323210348,1713817854180,-547.89,0.00013698,2]
[323210349,1713817854189,-500.0,0.00013698,2]
[323210350,1713817854201,-500.0,0.00013698,2]
[323210351,1713817854210,-500.0,0.00013698,2]
[323210352,1713817854219,-1641.26,0.00013698,2]
[323210353,1713817854228,-1768.32,0.00013698,2]
[323210354,1713817854237,-500.0,0.00013698,2]
[323210355,1713817854247,-500.0,0.00013698,2]
[323210356,1713817854257,-3339.2,0.00013698,2]
[323210357,1713817854266,-500.0,0.00013698,2]
[323210358,1713817854276,-668.1,0.00013698,2]
[323210359,1713817854286,-863.77,0.00013698,2]
[323210360,1713817854296,-500.0,0.00013698,2]
[323210361,1713817854305,-500.0,0.00013698,2]
[323210362,1713817854316,-500.0,0.00013698,2]
[323210363,1713817854325,-500.0,0.00013698,2]
[323210364,1713817854336,-500.0,0.00013698,2]
[323210365,1713817854346,-1124.07,0.00013698,2]
[323210366,1713817854355,-557.13,0.00013698,2]
[323210367,1713817854366,-500.0,0.00013698,2]
[323210368,1713817854375,-500.0,0.00013698,2]
[323210369,1713817854385,-562.12,0.00013698,2]
[323210370,1713817854395,-500.0,0.00013698,2]
[323210371,1713817854405,-840.96,0.00013698,2]
[323210372,1713817854415,-816.6,0.00013698,2]
[323210373,1713817854426,-500.0,0.00013698,2]
[323210374,1713817854436,-500.0,0.00013698,2]
[323210375,1713817854448,-811.15,0.00013698,2]
[323210376,1713817854458,-1876.65,0.00013698,2]
[323210377,1713817854468,-500.0,0.00013698,2]
[323210378,1713817854478,-500.0,0.00013698,2]
[323210379,1713817854488,-500.0,0.00013698,2]
[323210380,1713817854498,-1275.39,0.00013698,2]
[323210381,1713817854508,-500.0,0.00013698,2]
[323210382,1713817854517,-300.10099865,0.00013698,2]
[323210383,1713817854527,-500.0,0.00013698,2]
[323210384,1713817854537,-500.0,0.00013698,2]
[323210385,1713817854547,-1190.54,0.00013698,2]
[323210386,1713817854557,-500.0,0.00013698,2]
[323210387,1713817854567,-566.23690763,0.00013698,2]
[323210388,1713817854578,-1247.63,0.00013698,2]
[323210389,1713817854588,-1082.13,0.00013698,2]
[323210390,1713817854598,-754.66,0.00013698,2]
[323210391,1713817854609,-500.0,0.00013698,2]
[323210392,1713817854619,-2584.59,0.00013698,2]
[323210393,1713817854629,-1169.33,0.00013698,2]
[323210394,1713817854640,-3329.52,0.00013698,2]
[323210395,1713817854651,-500.0,0.00013698,2]
[323210396,1713817854661,-500.0,0.00013698,2]
[323210397,1713817854672,-621.96,0.00013698,2]
[323210398,1713817854682,-500.0,0.00013698,2]
[323210399,1713817854694,-500.0,0.00013698,2]
[323210400,1713817854705,-500.0,0.00013698,2]
[323210401,1713817854714,-500.0,0.00013698,2]
[323210402,1713817854724,-845.41,0.00013698,2]
[323210403,1713817854735,-500.0,0.00013698,2]
[323210404,1713817854746,-755.77,0.00013698,2]
[323210405,1713817854756,-973.92,0.00013698,2]
[323210406,1713817854765,-500.0,0.00013698,2]
[323210407,1713817854774,-1019.33,0.00013698,2]
[323210408,1713817854783,-500.0,0.00013698,2]
[323210409,1713817854792,-500.0,0.00013698,2]
[323210410,1713817854800,-549.92,0.00013698,2]
[323210411,1713817854810,-500.0,0.00013698,2]
[323210412,1713817854820,-500.0,0.00013698,2]
[323210413,1713817854830,-500.0,0.00013698,2]
[323210414,1713817854839,-1233.41,0.00013698,2]
[323210415,1713817854852,-500.0,0.00013698,2]
[323210416,1713817854861,-524.29,0.00013698,2]
[323210417,1713817854871,-730.26,0.00013698,2]
[323210418,1713817854881,-1250.58,0.00013698,2]
[323210419,1713817854891,-500.0,0.00013698,2]
[323210420,1713817854901,-590.06,0.00013698,2]
[323210421,1713817854911,-500.0,0.00013698,2]
[323210422,1713817854921,-1827.41,0.00013698,2]
[323210423,1713817854931,-500.0,0.00013698,2]
[323210424,1713817854939,-500.0,0.00013698,2]
[323210425,1713817854950,-744.02,0.00013698,2]
[323210426,1713817854959,-1751.5,0.00013698,2]
[323210427,1713817854969,-500.0,0.00013698,2]
[323210428,1713817854979,-500.0,0.00013698,2]
[323210429,1713817854988,-516.91949843,0.00013698,2]
[323210430,1713817854998,-1503.69,0.00013698,2]
[323210431,1713817855008,-500.0,0.00013698,2]
[323210432,1713817855017,-1054.98,0.00013698,2]
[323210433,1713817855026,-500.0,0.00013698,2]
[323210434,1713817855035,-527.77,0.00013698,2]
[323210435,1713817855045,-500.0,0.00013698,2]
[323210436,1713817855056,-500.0,0.00013698,2]
[323210437,1713817855065,-1757.63,0.00013698,2]
[323210438,1713817855074,-1390.28,0.00013698,2]
[323210439,1713817855083,-543.73,0.00013698,2]
[323210440,1713817855092,-800.72,0.00013698,2]
[323210441,1713817855101,-560.39,0.00013698,2]
[323210442,1713817855110,-500.0,0.00013698,2]
[323210443,1713817855119,-710.37,0.00013698,2]
[323210444,1713817855129,-1220.79,0.00013698,2]
[323210445,1713817855138,-8671.29,0.00013698,2]
[323210446,1713817855148,-2737.44,0.00013698,2]
[323210447,1713817855157,-500.0,0.00013698,2]
[323210448,1713817855167,-991.82,0.00013698,2]
[323210449,1713817855176,-500.0,0.00013698,2]
[323210450,1713817855186,-4012.68,0.00013698,2]
[323210451,1713817855195,-500.0,0.00013698,2]
[323210452,1713817855204,-3731.89,0.00013698,2]
[323210453,1713817855214,-1170.18,0.00013698,2]
[323210454,1713817855223,-1190.98,0.00013698,2]
[323210455,1713817855232,-500.0,0.00013698,2]
[323210456,1713817855242,-500.0,0.00013698,2]
[323210457,1713817855253,-1044.89,0.00013698,2]
[323210458,1713817855263,-500.0,0.00013698,2]
[323210459,1713817855273,-773.35,0.00013698,2]
[323210460,1713817855282,-509.58644902,0.00013698,2]
[323210461,1713817855292,-12096.17,0.00013698,2]
[323210462,1713817855301,-1727.84,0.00013698,2]
[323210463,1713817855311,-508.4,0.00013698,2]
[323210464,1713817855321,-938.55,0.00013698,2]
[323210465,1713817855331,-500.0,0.00013698,2]
[323210466,1713817855342,-1147.24,0.00013698,2]
[323210467,1713817855351,-236.89138399,0.00013698,2]
[323210468,1713817855362,-500.0,0.00013698,2]
[323210469,1713817855372,-20433.91,0.00013698,2]
[323210470,1713817855382,-1529.34,0.00013698,2]
[323210471,1713817855391,-4437.11,0.00013698,2]
[323210472,1713817855401,-3682.04,0.00013698,2]
[323210473,1713817855411,-4397.02,0.00013698,2]
[323210474,1713817855422,-500.0,0.00013698,2]
[323210475,1713817855431,-1045.51,0.00013698,2]
[323210476,1713817855440,-500.0,0.00013698,2]
[323210477,1713817855451,-500.0,0.00013698,2]
[323210478,1713817855460,-502.61,0.00013698,2]
[323210479,1713817855469,-500.0,0.00013698,2]
[323210480,1713817855478,-2939.82,0.00013698,2]
[323210481,1713817855488,-9104.68,0.00013698,2]
[323210482,1713817855497,-4066.35,0.00013698,2]
[323210483,1713817855508,-500.0,0.00013698,2]
[323210484,1713817855518,-500.0,0.00013698,2]
[323210485,1713817855528,-606.84,0.00013698,2]
[323210486,1713817855538,-2694.54,0.00013698,2]
[323210487,1713817855549,-675.73,0.00013698,2]
[323210488,1713817855558,-13312.5,0.00013698,2]
[323210489,1713817855569,-1227.83,0.00013698,2]
[323210490,1713817855579,-4924.18,0.00013698,2]
[323210491,1713817855589,-843.14,0.00013698,2]
[323210492,1713817855598,-500.0,0.00013698,2]
[323210493,1713817855607,-500.0,0.00013698,2]
[323210494,1713817855616,-752.32,0.00013698,2]
[323210495,1713817855627,-500.0,0.00013698,2]
[323210496,1713817855637,-2295.67,0.00013698,2]
[323210497,1713817855648,-500.0,0.00013698,2]
[323210498,1713817855659,-1329.4,0.00013698,2]
[323210499,1713817855670,-19623.04,0.00013698,2]
[323210500,1713817855682,-500.0,0.00013698,2]
[323210501,1713817855693,-500.0,0.00013698,2]
[323210502,1713817855705,-500.0,0.00013698,2]
[323210503,1713817855715,-500.0,0.00013698,2]
[323210504,1713817855725,-500.0,0.00013698,2]
[323210505,1713817855735,-4571.21,0.00013698,2]
[323210506,1713817855746,-696.75,0.00013698,2]
[323210507,1713817855758,-1065.73,0.00013698,2]
[323210508,1713817855768,-500.0,0.00013698,2]
[323210509,1713817855779,-8822.49,0.00013698,2]
[323210510,1713817855789,-4272.21,0.00013698,2]
[323210511,1713817855799,-2754.05,0.00013698,2]
[323210512,1713817855809,-500.0,0.00013698,2]
[323210513,1713817855819,-501.63321501,0.00013698,2]
[323210514,1713817855829,-2238.45,0.00013698,2]
[323210515,1713817855840,-500.0,0.00013698,2]
[323210516,1713817855855,-500.0,0.00013698,2]
[323210517,1713817855866,-500.0,0.00013698,2]
[323210518,1713817855876,-1968.05,0.00013698,2]
[323210519,1713817855887,-17508.63,0.00013698,2]
[323210520,1713817855897,-500.0,0.00013698,2]
[323210521,1713817855907,-5023.5,0.00013698,2]
[323210522,1713817855918,-975.21,0.00013698,2]
[323210523,1713817855929,-5213.97,0.00013698,2]
[323210524,1713817855940,-5798.87,0.00013698,2]
[323210525,1713817855951,-1827.86,0.00013698,2]
[323210526,1713817855962,-4518.5,0.00013698,2]
[323210527,1713817855972,-1356.45,0.00013698,2]
[323210528,1713817855982,-3464.58,0.00013698,2]
[323210529,1713817855992,-1130.77,0.00013698,2]
[323210530,1713817856002,-500.00313222,0.00013698,2]
[323210531,1713817856014,-533.11,0.00013698,2]
[323210532,1713817856025,-1424.13,0.00013698,2]
[323210533,1713817856035,-980.74,0.00013698,2]
[323210534,1713817856045,-7647.7,0.00013698,2]
[323210535,1713817856056,-500.0,0.00013698,2]
[323210536,1713817856066,-500.0,0.00013698,2]
[323210537,1713817856076,-500.0,0.00013698,2]
[323210538,1713817856086,-500.0,0.00013698,2]
[323210539,1713817856096,-866.39,0.00013698,2]
[323210540,1713817856107,-6333.04,0.00013698,2]
[323210541,1713817856118,-1043.08,0.00013698,2]
[323210542,1713817856128,-500.0,0.00013698,2]
[323210543,1713817856138,-4957.21,0.00013698,2]
[323210544,1713817856149,-500.0,0.00013698,2]
[323210545,1713817856160,-972.86,0.00013698,2]
[323210546,1713817856170,-500.0,0.00013698,2]
[323210547,1713817856180,-1902.61,0.00013698,2]
[323210548,1713817856191,-500.0,0.00013698,2]
[323210549,1713817856203,-17087.41,0.00013698,2]
[323210550,1713817856214,-2426.59,0.00013698,2]
[323210551,1713817856224,-4288.29,0.00013698,2]
[323210552,1713817856234,-502.96076092,0.00013698,2]
[323210553,1713817856244,-1173.49,0.00013698,2]
[323210554,1713817856254,-8918.06,0.00013698,2]
[323210555,1713817856265,-8646.75,0.00013698,2]
[323210556,1713817856275,-331.59960329,0.00013698,2]
[323210557,1713817856285,-500.0,0.00013698,2]
[323210558,1713817856296,-500.0,0.00013698,2]
[323210559,1713817856306,-5848.77,0.00013698,2]
[323210560,1713817856317,-663.73,0.00013698,2]
[323210561,1713817856328,-500.0,0.00013698,2]
[323210562,1713817856338,-14690.22,0.00013698,2]
[323210563,1713817856350,-1312.73,0.00013698,2]
[323210564,1713817856360,-524.73021264,0.00013698,2]
[323210565,1713817856372,-506.74,0.00013698,2]
[323210566,1713817856382,-529.73063731,0.00013698,2]
[323210567,1713817856393,-2234.61,0.00013698,2]
[323210568,1713817856402,-648.66,0.00013698,2]
[323210569,1713817856413,-500.0,0.00013698,2]
[323210570,1713817856425,-500.0,0.00013698,2]
[323210571,1713817856436,-10938.94,0.00013698,2]
[323210572,1713817856448,-500.0,0.00013698,2]
[323210573,1713817856458,-500.0,0.00013698,2]
[323210574,1713817856469,-1590.37,0.00013698,2]
[323210575,1713817856479,-1962.25,0.00013698,2]
[323210576,1713817856490,-500.0,0.00013698,2]
[323210577,1713817856500,-2886.61,0.00013698,2]
[323210578,1713817856510,-517.89501912,0.00013698,2]
[323210579,1713817856520,-1997.87,0.00013698,2]
[323210580,1713817856530,-579.41,0.00013698,2]
[323210581,1713817856541,-500.0,0.00013698,2]
[323210582,1713817856552,-53885.3,0.00013698,2]
[323210583,1713817856562,-1244.34,0.00013698,2]
[323210584,1713817856573,-4051.64,0.00013698,2]
[323210585,1713817856583,-2000.0,0.00013698,2]
[323210586,1713817856593,-7669.72,0.00013698,2]
[323210587,1713817856604,-500.0,0.00013698,2]
[323210588,1713817856614,-500.0,0.00013698,2]
[323210589,1713817856624,-500.0,0.00013698,2]
[323210590,1713817856635,-500.0,0.00013698,2]
[323210591,1713817856646,-2236.17,0.00013698,2]
[323210592,1713817856657,-2521.35,0.00013698,2]
[323210593,1713817856669,-500.0,0.00013698,2]
[323210594,1713817856679,-500.0,0.00013698,2]
[323210595,1713817856689,-500.0,0.00013698,2]
[323210596,1713817856703,-500.0,0.00013698,2]
[323210597,1713817856714,-1645.21,0.00013698,2]
[323210598,1713817856725,-1544.16,0.00013698,2]
[323210599,1713817856735,-500.0,0.00013698,2]
[323210600,1713817856746,-1510.42,0.00013698,2]
[323210601,1713817856756,-1343.13,0.00013698,2]
[323210602,1713817856767,-500.0,0.00013698,2]
[323210603,1713817856778,-500.0,0.00013698,2]
[323210604,1713817856788,-500.0,0.00013698,2]
[323210605,1713817856798,-500.0,0.00013698,2]
[323210606,1713817856808,-1028.46,0.00013698,2]
[323210607,1713817856818,-500.0,0.00013698,2]
[323210608,1713817856827,-5067.75,0.00013698,2]
[323210609,1713817856837,-803.65,0.00013698,2]
[323210610,1713817856849,-500.0,0.00013698,2]
[323210611,1713817856860,-754.93,0.00013698,2]
[323210612,1713817856870,-26471.53,0.00013698,2]
[323210613,1713817856881,-500.0,0.00013698,2]
[323210614,1713817856892,-500.0,0.00013698,2]
[323210615,1713817856902,-1051.95,0.00013698,2]
[323210616,1713817856913,-1582.45,0.00013698,2]
[323210617,1713817856925,-11812.41,0.00013698,2]
[323210618,1713817856935,-1564.41,0.00013698,2]
[323210619,1713817856947,-1393.84,0.00013698,2]
[323210620,1713817856957,-500.0,0.00013698,2]
[323210621,1713817856968,-807.31,0.00013698,2]
[323210622,1713817856978,-3864.45,0.00013698,2]
[323210623,1713817856989,-439.23337652,0.00013698,2]
[323210624,1713817857000,-3718.52,0.00013698,2]
[323210625,1713817857010,-500.0,0.00013698,2]
[323210626,1713817857020,-500.0,0.00013698,2]
[323210627,1713817857031,-500.0,0.00013698,2]
[323210628,1713817857042,-5811.41,0.00013698,2]
[323210629,1713817857052,-500.0,0.00013698,2]
[323210630,1713817857062,-6037.29,0.00013698,2]
[323210631,1713817857073,-500.0,0.00013698,2]
[323210632,1713817857083,-500.0,0.00013698,2]
[323210633,1713817857094,-1502.85,0.00013698,2]
[323210634,1713817857103,-2889.09,0.00013698,2]
[323210635,1713817857114,-548.84814097,0.00013698,2]
[323210636,1713817857124,-6389.88,0.00013698,2]
[323210637,1713817857134,-669.89,0.00013698,2]
[323210638,1713817857145,-500.0,0.00013698,2]
[323210639,1713817857155,-500.0,0.00013698,2]
[323210640,1713817857166,-500.0,0.00013698,2]
[323210641,1713817857176,-500.0,0.00013698,2]
[323210642,1713817857186,-500.0,0.00013698,2]
[323210643,1713817857199,-1991.04,0.00013698,2]
[323210644,1713817857209,-5057.75,0.00013698,2]
[323210645,1713817857218,-277.3393608,0.00013698,2]
[323210646,1713817857228,-2149.82,0.00013698,2]
[323210647,1713817857238,-2095.61,0.00013698,2]
[323210648,1713817857249,-2535.93,0.00013698,2]
[323210649,1713817857259,-500.0,0.00013698,2]
[323210650,1713817857270,-610.24,0.00013698,2]
[323210651,1713817857281,-500.0,0.00013698,2]
[323210652,1713817857291,-558.4,0.00013698,2]
[323210653,1713817857301,-500.0,0.00013698,2]
[323210654,1713817857311,-9434.59,0.00013698,2]
[323210655,1713817857322,-1851.7,0.00013698,2]
[323210656,1713817857332,-6735.46,0.00013698,2]
[323210657,1713817857343,-500.0,0.00013698,2]
[323210658,1713817857353,-1148.52,0.00013698,2]
[323210659,1713817857364,-500.0,0.00013698,2]
[323210660,1713817857375,-2751.02,0.00013698,2]
[323210661,1713817857385,-500.0,0.00013698,2]
[323210662,1713817857394,-500.0,0.00013698,2]
[323210663,1713817857405,-2872.2,0.00013698,2]
[323210664,1713817857416,-500.0,0.00013698,2]
[323210665,1713817857427,-560.07,0.00013698,2]
[323210666,1713817857438,-4572.48,0.00013698,2]
[323210667,1713817857449,-2848.87,0.00013698,2]
[323210668,1713817857461,-500.0,0.00013698,2]
[323210669,1713817857471,-503.59421494,0.00013698,2]
[323210670,1713817857482,-12108.08,0.00013698,2]
[323210671,1713817857494,-4162.92,0.00013698,2]
[323210672,1713817857505,-2605.69,0.00013698,2]
[323210673,1713817857515,-505.78,0.00013698,2]
[323210674,1713817857526,-500.0,0.00013698,2]
[323210675,1713817857537,-500.0,0.00013698,2]
[323210676,1713817857548,-2445.43,0.00013698,2]
[323210677,1713817857559,-500.0,0.00013698,2]
[323210678,1713817857569,-500.0,0.00013698,2]
[323210679,1713817857580,-1139.18,0.00013698,2]
[323210680,1713817857590,-500.0,0.00013698,2]
[323210681,1713817857602,-4970.85,0.00013698,2]
[323210682,1713817857613,-500.0,0.00013698,2]
[323210683,1713817857625,-500.0,0.00013698,2]
[323210684,1713817857636,-500.0,0.00013698,2]
[323210685,1713817857648,-5993.52,0.00013698,2]
[323210686,1713817857659,-782.97,0.00013698,2]